[Event "57th Biel Festival ATO 2024"]
[Site "Biel"]
[Date "2024.07.17"]
[Round "2.1"]
[White "Papaux, Jeremie"]
[Black "Nasybullina, Alfia"]
[Result "1/2-1/2"]
[ECO "D37"]
[WhiteElo "1814"]
[BlackElo "1997"]
[Annotator "RC"]
[PlyCount "59"]
[EventDate "2024.07.03"]
[EventType "swiss"]
[EventCountry "SUI"]
[SourceTitle "playchess.com"]
[Source "ChessBase"]
[SourceQuality "1"]
[TimeControl "40/5400+30:1800+30"]

1. d4 {[%emt 0:00:04]} d5 {[%emt 0:00:18]} 2. c4 {[%emt 0:00:11]} e6 {[%emt 0:00:21]} 3. Nf3 {[%emt 0:00:13]} a6 {[%emt 0:00:19]} 4. cxd5 {[%emt 0:00:40]} exd5 {[%emt 0:00:07]} 5. Nc3 {[%emt 0:00:09]} Nf6 {[%emt 0:00:08]} 6. Bg5 {[%emt 0:00:09]} c6 {[%emt 0:00:10]} 7. e3 {[%emt 0:01:17]} Bd6 {[%emt 0:00:27]} 8. Bd3 {[%emt 0:00:56]} Bg4 {[%emt 0:02:05]} 9. O-O {[%emt 0:04:52]} Nbd7 {[%emt 0:01:49]} 10. Re1 {[%emt 0:04:54]} Qc7 {[%emt 0:02:36]} 11. h3 {[%emt 0:00:33]} Bxf3 {[%emt 0:01:18]} 12. Qxf3 {[%emt 0:01:01]} h6 {[%emt 0:00:21]} 13. Bxf6 {[%emt 0:04:42]} Nxf6 {[%emt 0:02:01]} 14. e4 {[%emt 0:01:07]} dxe4 {[%emt 0:00:08]} 15. Nxe4 {[%emt 0:00:14]} Nxe4 {[%emt 0:00:17]} 16. Rxe4+ {[%emt 0:00:14]} Kf8 {[%emt 0:10:24]} 17. Rae1 {[%emt 0:01:24]} Qd8 {[%emt 0:01:44]} 18. Re6 {[%emt 0:18:00]} Rc8 {[%emt 0:22:54]} 19. Bg6 {[%emt 0:15:13]} Rc7 {[%emt 0:00:11]} 20. Qf5 {[%emt 0:00:28]} h5 {[%emt 0:04:01]} 21. Bxh5 {[%emt 0:04:05]} Rh6 {[%emt 0:14:18]} 22. Rxh6 {[%emt 0:09:04]} gxh6 {[%emt 0:00:25]} 23. Re3 {[%emt 0:05:26]} Kg7 {[%emt 0:07:04]} 24. Re4 {[%emt 0:03:03]} Kf8 {[%emt 0:06:49]} 25. g3 {[%emt 0:02:31]} Qg5 {[%emt 0:02:51]} 26. Qh7 {[%emt 0:02:19]} Qf6 {[%emt 0:01:02]} 27. Rg4 {[%emt 0:03:04]} Ke8 {[%emt 0:02:17]} 28. Re4+ {[%emt 0:03:53]} Kf8 {[%emt 0:01:25]} 29. Rg4 {[%emt 0:08:31]} Ke8 {[%emt 0:00:08]} 30. Re4+ {[%emt 0:05:14]} 1/2-1/2

[Event "57th Biel Festival ATO 2024"]
[Site "Biel"]
[Date "2024.07.17"]
[Round "2.2"]
[White "Wiesmann, Dominique"]
[Black "Noh, Jinwoo"]
[Result "0-1"]
[ECO "A07"]
[WhiteElo "1963"]
[BlackElo "1824"]
[Annotator "RC"]
[PlyCount "114"]
[EventDate "2024.07.03"]
[EventType "swiss"]
[EventCountry "SUI"]
[SourceTitle "playchess.com"]
[Source "ChessBase"]
[SourceQuality "1"]
[TimeControl "40/5400+30:1800+30"]

1. Nf3 {[%emt 0:00:08]} d5 {[%emt 0:00:46]} 2. g3 {[%emt 0:00:10]} Nf6 {[%emt 0:01:28]} 3. Bg2 {[%emt 0:00:09]} e6 {[%emt 0:02:49]} 4. O-O {[%emt 0:00:17]} Bd6 {[%emt 0:00:10]} 5. d3 {[%emt 0:00:33]} Nbd7 {[%emt 0:06:41]} 6. Nbd2 {[%emt 0:02:46]} b6 {[%emt 0:00:47]} 7. Re1 {[%emt 0:01:07]} Bb7 {[%emt 0:01:42]} 8. e4 {[%emt 0:03:20]} dxe4 {[%emt 0:00:21]} 9. dxe4 {[%emt 0:09:30]} Bc5 {[%emt 0:04:11]} 10. h3 {[%emt 0:02:46]} e5 {[%emt 0:10:24]} 11. c3 {[%emt 0:12:58]} a5 {[%emt 0:04:05]} 12. Nh2 {[%emt 0:01:40]} Qe7 {[%emt 0:01:56]} 13. Nhf1 {[%emt 0:01:28]} O-O-O {[%emt 0:13:40]} 14. a3 {[%emt 0:03:11]} b5 {[%emt 0:06:21]} 15. Qe2 {[%emt 0:04:57]} Bb6 {[%emt 0:05:24]} 16. Qxb5 {[%emt 0:07:08]} Nc5 {[%emt 0:01:53]} 17. Nc4 {[%emt 0:00:43]} Qe6 {[%emt 0:01:06]} 18. Nxb6+ {[%emt 0:06:17]} cxb6 {[%emt 0:00:07]} 19. Qe2 {[%emt 0:00:34]} Ba6 {[%emt 0:00:43]} 20. Qf3 {[%emt 0:07:00]} Nb3 {[%emt 0:00:34]} 21. Rb1 {[%emt 0:00:21]} Bd3 {[%emt 0:00:23]} 22. Bg5 {[%emt 0:01:32]} Bxb1 {[%emt 0:00:13]} 23. Rxb1 {[%emt 0:00:12]} Rd6 {[%emt 0:01:45]} 24. Qe2 {[%emt 0:04:02]} Nd7 {[%emt 0:02:11]} 25. Be3 {[%emt 0:05:14]} Kb7 {[%emt 0:01:53]} 26. Qb5 {[%emt 0:02:51]} Rc8 {[%emt 0:00:58]} 27. Qe2 {[%emt 0:04:53]} a4 {[%emt 0:05:20]} 28. Nh2 {[%emt 0:03:24]} Ndc5 {[%emt 0:03:12]} 29. f4 {[%emt 0:02:13]} Nd3 {[%emt 0:01:49]} 30. Nf3 {[%emt 0:02:04]} f6 {[%emt 0:01:50]} 31. fxe5 {[%emt 0:05:10]} fxe5 {[%emt 0:00:11]} 32. Bf1 {[%emt 0:00:47]} Rcd8 {[%emt 0:01:56]} 33. Kh2 {[%emt 0:00:39]} h6 {[%emt 0:02:34]} 34. Rd1 {[%emt 0:03:23]} Nbc5 {[%emt 0:03:51]} 35. Bg1 {[%emt 0:03:27]} Qf6 {[%emt 0:02:34]} 36. Rd2 {[%emt 0:00:52]} Kb8 {[%emt 0:01:23]} 37. Qe3 {[%emt 0:00:28]} Ne1 {[%emt 0:01:11]} 38. Rxd6 {[%emt 0:00:29]} Nxf3+ {[%emt 0:00:12]} 39. Kg2 {[%emt 0:00:24]} Rxd6 {[%emt 0:00:07]} 40. Qxf3 {[%emt 0:00:00]} Qxf3+ {[%emt 0:00:00]} 41. Kxf3 {[%emt 0:00:51]} Rf6+ {[%emt 0:01:14]} 42. Kg2 {[%emt 0:00:28]} Nxe4 {[%emt 0:00:10]} 43. Bb5 {[%emt 0:00:26]} Nc5 {[%emt 0:01:34]} 44. Bxc5 {[%emt 0:01:22]} bxc5 {[%emt 0:00:05]} 45. Bxa4 {[%emt 0:00:10]} e4 {[%emt 0:00:07]} 46. Bd1 {[%emt 0:01:08]} e3 {[%emt 0:01:07]} 47. Bf3 {[%emt 0:00:53]} Kc7 {[%emt 0:00:15]} 48. g4 {[%emt 0:01:17]} Kd6 {[%emt 0:00:16]} 49. b4 {[%emt 0:01:38]} Rf4 {[%emt 0:01:47]} 50. a4 {[%emt 0:07:13]} cxb4 {[%emt 0:00:25]} 51. cxb4 {[%emt 0:00:08]} Rxb4 {[%emt 0:00:08]} 52. Bd1 {[%emt 0:00:24]} Rf4 {[%emt 0:00:09]} 53. Kg3 {[%emt 0:05:44]} Rf2 {[%emt 0:00:10]} 54. Bf3 {[%emt 0:02:17]} Ke5 {[%emt 0:00:27]} 55. Bc6 {[%emt 0:01:53]} Kd4 {[%emt 0:00:33]} 56. Bb5 {[%emt 0:00:28]} Kc3 {[%emt 0:01:33]} 57. a5 {[%emt 0:00:52]} Kb4 {[%emt 0:00:10]} 0-1

[Event "57th Biel Festival ATO 2024"]
[Site "Biel"]
[Date "2024.07.17"]
[Round "2.3"]
[White "Paholok, Igor"]
[Black "Kulikov, Mikhail L"]
[Result "0-1"]
[ECO "D05"]
[WhiteElo "1801"]
[BlackElo "1954"]
[Annotator "RC"]
[PlyCount "124"]
[EventDate "2024.07.03"]
[EventType "swiss"]
[EventCountry "SUI"]
[SourceTitle "playchess.com"]
[Source "ChessBase"]
[SourceQuality "1"]
[TimeControl "40/5400+30:1800+30"]

1. d4 {[%emt 0:13:05]} Nf6 {[%emt 0:00:23]} 2. Nf3 {[%emt 0:00:05]} e6 {[%emt 0:00:41]} 3. e3 {[%emt 0:00:09]} d5 {[%emt 0:02:20]} 4. Bd3 {[%emt 0:01:50]} Be7 {[%emt 0:00:53]} 5. Nbd2 {[%emt 0:00:11]} O-O {[%emt 0:00:43]} 6. O-O {[%emt 0:00:21]} c5 {[%emt 0:01:33]} 7. c3 {[%emt 0:00:18]} Nc6 {[%emt 0:01:49]} 8. dxc5 {[%emt 0:00:25]} Bxc5 {[%emt 0:07:58]} 9. Qe2 {[%emt 0:02:44]} Be7 {[%emt 0:07:08]} 10. e4 {[%emt 0:02:17]} dxe4 {[%emt 0:00:51]} 11. Nxe4 {[%emt 0:00:15]} h6 {[%emt 0:03:31]} 12. Nxf6+ {[%emt 0:00:55]} Bxf6 {[%emt 0:00:27]} 13. Qe4 {[%emt 0:00:18]} Re8 {[%emt 0:17:51]} 14. Qh7+ {[%emt 0:01:15]} Kf8 {[%emt 0:00:02]} 15. Be3 {[%emt 0:04:49]} b6 {[%emt 0:05:11]} 16. Be4 {[%emt 0:05:50]} Bb7 {[%emt 0:02:39]} 17. Nd4 {[%emt 0:08:20]} Bxd4 {[%emt 0:17:14]} 18. Bxd4 {[%emt 0:00:59]} e5 {[%emt 0:03:23]} 19. Rfe1 {[%emt 0:10:13]} Qf6 {[%emt 0:03:44]} 20. f4 {[%emt 0:09:54]} Qxf4 {[%emt 0:03:50]} 21. Qh8+ {[%emt 0:04:28]} Ke7 {[%emt 0:00:18]} 22. Qxg7 {[%emt 0:10:07]} Rg8 {[%emt 0:05:45]} 23. Qh7 {[%emt 0:01:27]} Rh8 {[%emt 0:02:22]} 24. Qf5 {[%emt 0:00:42]} Qxf5 {[%emt 0:00:11]} 25. Bxf5 {[%emt 0:00:15]} f6 {[%emt 0:02:57]} 26. Be3 {[%emt 0:02:50]} Rad8 {[%emt 0:00:22]} 27. Rad1 {[%emt 0:00:15]} h5 {[%emt 0:01:11]} 28. Bf2 {[%emt 0:04:26]} Na5 {[%emt 0:00:54]} 29. Bh4 {[%emt 0:01:36]} Rxd1 {[%emt 0:02:36]} 30. Rxd1 {[%emt 0:00:16]} Bc6 {[%emt 0:00:06]} 31. Re1 {[%emt 0:05:41]} Kf7 {[%emt 0:00:49]} 32. Rd1 {[%emt 0:02:17]} Nc4 {[%emt 0:00:42]} 33. Bc2 {[%emt 0:00:41]} Ke7 {[%emt 0:03:13]} 34. Re1 {[%emt 0:03:39]} Ke6 {[%emt 0:00:19]} 35. Bb3 {[%emt 0:00:18]} b5 {[%emt 0:00:31]} 36. Bf2 {[%emt 0:02:55]} Rg8 {[%emt 0:00:00]} 37. g3 {[%emt 0:00:15]} a6 {[%emt 0:00:06]} 38. Rd1 {[%emt 0:00:19]} h4 {[%emt 0:00:22]} 39. Bc5 {[%emt 0:00:43]} Bd5 {[%emt 0:00:37]} 40. Kf2 {[%emt 0:00:00]} hxg3+ {[%emt 0:00:00]} 41. hxg3 {[%emt 0:01:44]} Rh8 {[%emt 0:01:18]} 42. Bxc4 {[%emt 0:07:09]} bxc4 {[%emt 0:00:34]} 43. Ke2 {[%emt 0:02:08]} Rh2+ {[%emt 0:03:18]} 44. Bf2 {[%emt 0:00:12]} a5 {[%emt 0:03:53]} 45. Ke3 {[%emt 0:02:20]} a4 {[%emt 0:01:29]} 46. Rd2 {[%emt 0:00:51]} Rh1 {[%emt 0:01:11]} 47. Re2 {[%emt 0:03:23]} Rd1 {[%emt 0:03:27]} 48. Be1 {[%emt 0:01:23]} Rd3+ {[%emt 0:02:36]} 49. Kf2 {[%emt 0:00:02]} Rf3+ {[%emt 0:00:46]} 50. Kg1 {[%emt 0:00:11]} Kf5 {[%emt 0:01:30]} 51. Bf2 {[%emt 0:01:15]} Rd3 {[%emt 0:01:32]} 52. Be1 {[%emt 0:04:49]} Bf3 {[%emt 0:02:00]} 53. Rf2 {[%emt 0:03:50]} Kg4 {[%emt 0:02:12]} 54. Rh2 {[%emt 0:00:48]} Rd1 {[%emt 0:01:10]} 55. Rh4+ {[%emt 0:01:33]} Kf5 {[%emt 0:00:13]} 56. Kf1 {[%emt 0:03:15]} Be4 {[%emt 0:03:28]} 57. Kf2 {[%emt 0:05:10]} Rb1 {[%emt 0:01:00]} 58. g4+ {[%emt 0:00:59]} Kg5 {[%emt 0:01:40]} 59. Rh8 {[%emt 0:00:33]} Kxg4 {[%emt 0:01:44]} 60. Bd2 {[%emt 0:00:54]} Rxb2 {[%emt 0:01:36]} 61. Ke3 {[%emt 0:00:26]} Bd3 {[%emt 0:02:06]} 62. Rg8+ {[%emt 0:00:36]} Kf5 {[%emt 0:00:12]} 0-1

[Event "57th Biel Festival ATO 2024"]
[Site "Biel"]
[Date "2024.07.17"]
[Round "2.4"]
[White "King, Alexander"]
[Black "Spaeti, Kurt"]
[Result "0-1"]
[ECO "D02"]
[WhiteElo "1935"]
[BlackElo "1804"]
[Annotator "RC"]
[PlyCount "112"]
[EventDate "2024.07.03"]
[EventType "swiss"]
[EventCountry "SUI"]
[SourceTitle "playchess.com"]
[Source "ChessBase"]
[SourceQuality "1"]
[TimeControl "40/5400+30:1800+30"]

1. d4 {[%emt 0:00:02]} Nf6 {[%emt 0:00:10]} 2. Bf4 {[%emt 0:00:06]} d5 {[%emt 0:00:33]} 3. e3 {[%emt 0:00:02]} e6 {[%emt 0:00:27]} 4. Nd2 {[%emt 0:00:03]} Bd6 {[%emt 0:01:55]} 5. Bg3 {[%emt 0:01:00]} O-O {[%emt 0:00:18]} 6. Ngf3 {[%emt 0:00:21]} b6 {[%emt 0:01:29]} 7. c3 {[%emt 0:03:41]} Bb7 {[%emt 0:07:23]} 8. Bd3 {[%emt 0:02:05]} c5 {[%emt 0:02:34]} 9. Ne5 {[%emt 0:15:31]} Qc7 {[%emt 0:10:04]} 10. O-O {[%emt 0:11:46]} Nbd7 {[%emt 0:18:13]} 11. f4 {[%emt 0:12:47]} g6 {[%emt 0:13:14]} 12. Qf3 {[%emt 0:03:18]} Nh5 {[%emt 0:11:12]} 13. Bb5 {[%emt 0:17:25]} Nxg3 {[%emt 0:04:10]} 14. hxg3 {[%emt 0:05:39]} Nf6 {[%emt 0:01:03]} 15. Kf2 {[%emt 0:02:20]} a6 {[%emt 0:04:54]} 16. Bd3 {[%emt 0:00:29]} Nd7 {[%emt 0:05:53]} 17. Qg4 {[%emt 0:02:38]} cxd4 {[%emt 0:08:21]} 18. exd4 {[%emt 0:00:57]} Nf6 {[%emt 0:00:48]} 19. Qh4 {[%emt 0:00:55]} Be7 {[%emt 0:03:34]} 20. Qh6 {[%emt 0:01:14]} Qxe5 {[%emt 0:00:10]} 21. fxe5 {[%emt 0:02:09]} Ng4+ {[%emt 0:00:10]} 22. Ke2 {[%emt 0:00:20]} Nxh6 {[%emt 0:00:03]} 23. Rh1 {[%emt 0:00:20]} Ng4 {[%emt 0:02:24]} 24. Rh3 {[%emt 0:01:08]} h5 {[%emt 0:01:44]} 25. Rah1 {[%emt 0:00:42]} Kg7 {[%emt 0:00:22]} 26. Nf3 {[%emt 0:00:12]} a5 {[%emt 0:01:08]} 27. Nh2 {[%emt 0:00:58]} Nxh2 {[%emt 0:00:13]} 28. R1xh2 {[%emt 0:00:02]} Ba6 {[%emt 0:00:09]} 29. g4 {[%emt 0:00:14]} Bxd3+ {[%emt 0:01:00]} 30. Kxd3 {[%emt 0:00:03]} Rh8 {[%emt 0:00:53]} 31. gxh5 {[%emt 0:00:13]} Rxh5 {[%emt 0:00:09]} 32. Rxh5 {[%emt 0:00:14]} gxh5 {[%emt 0:00:02]} 33. Rxh5 {[%emt 0:00:31]} Rh8 {[%emt 0:00:18]} 34. Rxh8 {[%emt 0:00:00]} Kxh8 {[%emt 0:00:05]} 35. c4 {[%emt 0:00:15]} dxc4+ {[%emt 0:00:51]} 36. Kxc4 {[%emt 0:18:50]} f6 {[%emt 0:02:34]} 37. Kb5 {[%emt 0:00:30]} fxe5 {[%emt 0:00:30]} 38. dxe5 {[%emt 0:00:30]} Bc5 {[%emt 0:00:30]} 39. Kc6 {[%emt 0:00:30]} Kg7 {[%emt 0:00:30]} 40. Kd7 {[%emt 0:00:30]} Kf7 {[%emt 0:00:30]} 41. b3 {[%emt 0:30:30]} Bd4 {[%emt 0:30:30]} 42. Kd6 {[%emt 0:00:30]} Be3 {[%emt 0:00:30]} 43. a4 {[%emt 0:00:30]} Bf4 {[%emt 0:00:30]} 44. g4 {[%emt 0:00:30]} Be3 {[%emt 0:00:30]} 45. Kd7 {[%emt 0:00:30]} Bc5 {[%emt 0:00:30]} 46. g5 {[%emt 0:00:30]} Be3 {[%emt 0:00:30]} 47. g6+ {[%emt 0:00:30]} Kxg6 {[%emt 0:00:30]} 48. Kxe6 {[%emt 0:00:30]} Bc5 {[%emt 0:00:30]} 49. Kd7 {[%emt 0:00:30]} Kf5 {[%emt 0:00:30]} 50. e6 {[%emt 0:00:30]} Kf6 {[%emt 0:00:30]} 51. e7 {[%emt 0:00:30]} Bxe7 {[%emt 0:00:30]} 52. Kc6 {[%emt 0:00:30]} Bc5 {[%emt 0:00:30]} 53. Kb5 {[%emt 0:00:30]} Kf5 {[%emt 0:00:30]} 54. Kc4 {[%emt 0:00:30]} Ke4 {[%emt 0:00:30]} 55. Kc3 {[%emt 0:00:30]} Ke3 {[%emt 0:00:30]} 56. Kc2 {[%emt 0:00:30]} Bb4 {[%emt 0:00:30]} 0-1

[Event "57th Biel Festival ATO 2024"]
[Site "Biel"]
[Date "2024.07.17"]
[Round "2.5"]
[White "Hofer, Friedrich"]
[Black "Schneuwly, Achim"]
[Result "0-1"]
[ECO "B49"]
[WhiteElo "1798"]
[BlackElo "1933"]
[Annotator "RC"]
[PlyCount "84"]
[EventDate "2024.07.03"]
[EventType "swiss"]
[EventCountry "SUI"]
[SourceTitle "playchess.com"]
[Source "ChessBase"]
[SourceQuality "1"]
[TimeControl "40/5400+30:1800+30"]

1. e4 {[%emt 0:00:15]} c5 {[%emt 0:00:06]} 2. Nf3 {[%emt 0:00:09]} Nc6 {[%emt 0:00:13]} 3. d4 {[%emt 0:01:22]} cxd4 {[%emt 0:00:09]} 4. Nxd4 {[%emt 0:00:08]} Qc7 {[%emt 0:00:08]} 5. Nc3 {[%emt 0:01:59]} e6 {[%emt 0:00:19]} 6. Be2 {[%emt 0:01:55]} Nf6 {[%emt 0:00:37]} 7. Be3 {[%emt 0:00:28]} Bb4 {[%emt 0:02:00]} 8. O-O {[%emt 0:00:18]} O-O {[%emt 0:01:49]} 9. f3 {[%emt 0:00:10]} a6 {[%emt 0:09:02]} 10. Nb1 {[%emt 0:01:23]} d5 {[%emt 0:00:42]} 11. Nxc6 {[%emt 0:01:47]} bxc6 {[%emt 0:01:08]} 12. c3 {[%emt 0:00:17]} Bd6 {[%emt 0:00:40]} 13. h3 {[%emt 0:01:21]} dxe4 {[%emt 0:03:00]} 14. f4 {[%emt 0:08:23]} Nd5 {[%emt 0:01:35]} 15. Qc1 {[%emt 0:00:21]} Rd8 {[%emt 0:04:02]} 16. c4 {[%emt 0:01:08]} Nxe3 {[%emt 0:00:15]} 17. Qxe3 {[%emt 0:00:09]} Qa7 {[%emt 0:00:37]} 18. Qxa7 {[%emt 0:01:53]} Rxa7 {[%emt 0:00:04]} 19. Kh1 {[%emt 0:00:42]} Rad7 {[%emt 0:05:18]} 20. Nc3 {[%emt 0:02:36]} f5 {[%emt 0:00:21]} 21. g3 {[%emt 0:02:08]} Bc5 {[%emt 0:04:41]} 22. Rad1 {[%emt 0:00:54]} Kf7 {[%emt 0:02:17]} 23. Rxd7+ {[%emt 0:03:31]} Rxd7 {[%emt 0:00:03]} 24. Rd1 {[%emt 0:00:22]} e5 {[%emt 0:00:21]} 25. Rxd7+ {[%emt 0:06:29]} Bxd7 {[%emt 0:00:03]} 26. Na4 {[%emt 0:00:40]} Bd4 {[%emt 0:01:02]} 27. c5 {[%emt 0:00:13]} a5 {[%emt 0:01:37]} 28. Kg2 {[%emt 0:02:38]} Be6 {[%emt 0:02:00]} 29. b3 {[%emt 0:00:29]} Bd5 {[%emt 0:01:02]} 30. fxe5 {[%emt 0:07:35]} Ke6 {[%emt 0:00:11]} 31. Kf1 {[%emt 0:01:30]} Kxe5 {[%emt 0:00:27]} 32. Ba6 {[%emt 0:05:34]} g5 {[%emt 0:01:21]} 33. Bc8 {[%emt 0:01:57]} f4 {[%emt 0:00:29]} 34. gxf4+ {[%emt 0:01:17]} gxf4 {[%emt 0:00:07]} 35. Nb6 {[%emt 0:03:00]} Bxc5 {[%emt 0:04:35]} 36. Nxd5 {[%emt 0:01:17]} cxd5 {[%emt 0:00:27]} 37. Bb7 {[%emt 0:03:52]} d4 {[%emt 0:01:25]} 38. h4 {[%emt 0:02:11]} h5 {[%emt 0:01:03]} 39. Bc6 {[%emt 0:00:18]} Be7 {[%emt 0:00:16]} 40. Be8 {[%emt 0:00:00]} Bxh4 {[%emt 0:00:00]} 41. Bxh5 {[%emt 0:00:32]} f3 {[%emt 0:00:46]} 42. a3 {[%emt 0:05:06]} d3 {[%emt 0:00:09]} 0-1

[Event "57th Biel Festival ATO 2024"]
[Site "Biel"]
[Date "2024.07.17"]
[Round "2.6"]
[White "Andrzejewska, Anna"]
[Black "Kim, Donghan"]
[Result "1-0"]
[ECO "B29"]
[WhiteElo "1933"]
[BlackElo "1746"]
[Annotator "RC"]
[PlyCount "123"]
[EventDate "2024.07.03"]
[EventType "swiss"]
[EventCountry "SUI"]
[SourceTitle "playchess.com"]
[Source "ChessBase"]
[SourceQuality "1"]
[TimeControl "40/5400+30:1800+30"]

1. e4 {[%emt 0:00:05]} c5 {[%emt 0:00:07]} 2. Nf3 {[%emt 0:00:05]} Nf6 {[%emt 0:00:12]} 3. Nc3 {[%emt 0:01:24]} d5 {[%emt 0:00:15]} 4. e5 {[%emt 0:07:45]} Nfd7 {[%emt 0:01:13]} 5. Nxd5 {[%emt 0:22:02]} Nxe5 {[%emt 0:00:22]} 6. Nxe5 {[%emt 0:09:56]} Qxd5 {[%emt 0:00:24]} 7. Qe2 {[%emt 0:04:00]} Nc6 {[%emt 0:02:41]} 8. Nxc6 {[%emt 0:01:44]} Qxc6 {[%emt 0:00:48]} 9. d3 {[%emt 0:03:49]} e6 {[%emt 0:04:43]} 10. Bd2 {[%emt 0:05:16]} Bd6 {[%emt 0:01:58]} 11. Bc3 {[%emt 0:04:16]} O-O {[%emt 0:01:51]} 12. Qe4 {[%emt 0:06:24]} Bd7 {[%emt 0:03:51]} 13. Qxc6 {[%emt 0:05:36]} Bxc6 {[%emt 0:00:43]} 14. Be2 {[%emt 0:06:05]} Rad8 {[%emt 0:04:40]} 15. O-O {[%emt 0:01:53]} Rd7 {[%emt 0:03:13]} 16. f4 {[%emt 0:01:40]} Re8 {[%emt 0:02:45]} 17. Rae1 {[%emt 0:01:24]} Rde7 {[%emt 0:07:30]} 18. Bf3 {[%emt 0:00:56]} Bxf3 {[%emt 0:00:45]} 19. Rxf3 {[%emt 0:00:05]} e5 {[%emt 0:01:57]} 20. fxe5 {[%emt 0:01:00]} Bxe5 {[%emt 0:00:10]} 21. Bxe5 {[%emt 0:00:33]} Rxe5 {[%emt 0:00:54]} 22. Rxe5 {[%emt 0:00:04]} Rxe5 {[%emt 0:00:08]} 23. Kf2 {[%emt 0:00:06]} f6 {[%emt 0:04:34]} 24. Re3 {[%emt 0:00:51]} Rf5+ {[%emt 0:00:34]} 25. Rf3 {[%emt 0:02:23]} Rd5 {[%emt 0:01:05]} 26. Ke3 {[%emt 0:01:48]} Kf7 {[%emt 0:00:17]} 27. Kd2 {[%emt 0:00:31]} Rg5 {[%emt 0:02:23]} 28. Rf2 {[%emt 0:00:14]} Rh5 {[%emt 0:01:13]} 29. h3 {[%emt 0:00:22]} Ke6 {[%emt 0:02:02]} 30. a4 {[%emt 0:01:04]} Re5 {[%emt 0:02:37]} 31. Kc3 {[%emt 0:02:01]} Kd5 {[%emt 0:00:34]} 32. b3 {[%emt 0:01:18]} a5 {[%emt 0:03:01]} 33. Kd2 {[%emt 0:00:38]} Re6 {[%emt 0:03:37]} 34. Rf5+ {[%emt 0:02:05]} Re5 {[%emt 0:00:32]} 35. Rf2 {[%emt 0:00:05]} Ke6 {[%emt 0:02:10]} 36. Kc3 {[%emt 0:00:46]} Kd5 {[%emt 0:00:43]} 37. Kd2 {[%emt 0:00:21]} Re6 {[%emt 0:02:03]} 38. Rf5+ {[%emt 0:00:37]} Kd6 {[%emt 0:01:26]} 39. d4 {[%emt 0:04:52]} cxd4 {[%emt 0:15:58]} 40. Rxa5 {[%emt 0:00:00]} Re5 {[%emt 0:00:00]} 41. Ra8 {[%emt 0:05:20]} Rf5 {[%emt 0:07:27]} 42. g4 {[%emt 0:08:25]} Rf2+ {[%emt 0:06:52]} 43. Kd3 {[%emt 0:00:04]} Rf3+ {[%emt 0:00:10]} 44. Kxd4 {[%emt 0:00:16]} Rxh3 {[%emt 0:00:20]} 45. Rd8+ {[%emt 0:02:18]} Kc7 {[%emt 0:01:48]} 46. Rg8 {[%emt 0:00:46]} g5 {[%emt 0:01:06]} 47. Rg7+ {[%emt 0:02:12]} Kc6 {[%emt 0:01:31]} 48. Ke4 {[%emt 0:05:09]} Rc3 {[%emt 0:06:24]} 49. Rxh7 {[%emt 0:00:49]} Rxc2 {[%emt 0:00:36]} 50. Kf5 {[%emt 0:02:35]} Rc3 {[%emt 0:02:45]} 51. Kxf6 {[%emt 0:01:06]} Rxb3 {[%emt 0:00:10]} 52. Kxg5 {[%emt 0:00:52]} Rb4 {[%emt 0:04:54]} 53. Kf5 {[%emt 0:00:49]} Rxa4 {[%emt 0:00:55]} 54. g5 {[%emt 0:00:16]} b5 {[%emt 0:01:09]} 55. g6 {[%emt 0:00:17]} Ra1 {[%emt 0:00:33]} 56. Rh4 {[%emt 0:05:27]} Kd5 {[%emt 0:02:16]} 57. g7 {[%emt 0:00:42]} Ra8 {[%emt 0:01:21]} 58. Rh8 {[%emt 0:00:09]} Ra4 {[%emt 0:00:24]} 59. g8=Q+ {[%emt 0:00:17]} Kd6 {[%emt 0:00:21]} 60. Qe6+ {[%emt 0:00:33]} Kc7 {[%emt 0:00:07]} 61. Rh7+ {[%emt 0:00:04]} Kd8 {[%emt 0:00:29]} 62. Qg8# {[%emt 0:00:04]} 1-0

[Event "57th Biel Festival ATO 2024"]
[Site "Biel"]
[Date "2024.07.17"]
[Round "2.7"]
[White "Richard, Jean-Paul"]
[Black "Conrad, Vincent"]
[Result "0-1"]
[ECO "C00"]
[WhiteElo "1796"]
[BlackElo "1931"]
[Annotator "RC"]
[PlyCount "51"]
[EventDate "2024.07.03"]
[EventType "swiss"]
[EventCountry "SUI"]
[SourceTitle "playchess.com"]
[Source "ChessBase"]
[SourceQuality "1"]
[TimeControl "40/5400+30:1800+30"]

1. e4 {[%emt 0:00:07]} e6 {[%emt 0:00:09]} 2. Nf3 {[%emt 0:00:24]} d5 {[%emt 0:00:24]} 3. e5 {[%emt 0:00:07]} c5 {[%emt 0:00:31]} 4. b4 {[%emt 0:00:17]} cxb4 {[%emt 0:03:34]} 5. d4 {[%emt 0:00:42]} Bd7 {[%emt 0:00:39]} 6. a3 {[%emt 0:02:20]} Qb6 {[%emt 0:05:52]} 7. Be2 {[%emt 0:13:15]} Bb5 {[%emt 0:02:22]} 8. axb4 {[%emt 0:08:09]} Bxb4+ {[%emt 0:00:17]} 9. c3 {[%emt 0:00:37]} Bxe2 {[%emt 0:08:11]} 10. Qxe2 {[%emt 0:00:28]} Be7 {[%emt 0:01:22]} 11. O-O {[%emt 0:06:39]} Nc6 {[%emt 0:00:56]} 12. Na3 {[%emt 0:05:59]} Na5 {[%emt 0:31:31]} 13. Qb5+ {[%emt 0:12:33]} Nc6 {[%emt 0:04:50]} 14. Qxb6 {[%emt 0:05:38]} axb6 {[%emt 0:00:11]} 15. Bb2 {[%emt 0:03:07]} Bxa3 {[%emt 0:04:15]} 16. Bxa3 {[%emt 0:06:37]} Nge7 {[%emt 0:05:14]} 17. Bd6 {[%emt 0:02:54]} Kd7 {[%emt 0:01:45]} 18. Rfb1 {[%emt 0:03:53]} Rxa1 {[%emt 0:03:42]} 19. Rxa1 {[%emt 0:00:07]} Na5 {[%emt 0:03:35]} 20. Bb4 {[%emt 0:10:39]} Nec6 {[%emt 0:00:29]} 21. g3 {[%emt 0:01:34]} h6 {[%emt 0:00:34]} 22. Rb1 {[%emt 0:01:58]} Nc4 {[%emt 0:00:32]} 23. Ra1 {[%emt 0:02:36]} N6a5 {[%emt 0:00:24]} 24. Kf1 {[%emt 0:02:31]} Rc8 {[%emt 0:02:55]} 25. Ke2 {[%emt 0:00:54]} Kc6 {[%emt 0:01:39]} 26. Nd2 {[%emt 0:02:46]} 0-1